[Event "Qatar Masters-B 2024"]
[Site "Doha"]
[Date "2024.12.09"]
[Round "6.1"]
[White "Syed Abdul Khader"]
[Black "Shermuhammadov, Samandar"]
[Result "0-1"]
[ECO "B07"]
[WhiteElo "1943"]
[BlackElo "2108"]
[Annotator "NA RC"]
[PlyCount "94"]
[EventDate "2024.11.24"]
[EventType "swiss"]
[EventCountry "QAT"]
[SourceTitle "playchess.com"]
[Source "ChessBase"]
[SourceQuality "1"]
[TimeControl "40/5400+30:1800+30"]

1. e4 {[%emt 0:00:03]} d6 {[%emt 0:00:11]} 2. d4 {[%emt 0:01:07]} Nf6 {[%emt 0:00:04]} 3. Nc3 {[%emt 0:02:20]} g6 {[%emt 0:00:04]} 4. Bg5 {[%emt 0:01:02]} Bg7 {[%emt 0:00:13]} 5. Qd2 {[%emt 0:00:24]} O-O {[%emt 0:00:58]} 6. O-O-O {[%emt 0:02:10]} c6 {[%emt 0:00:23]} 7. Bd3 {[%emt 0:02:21]} e5 {[%emt 0:02:59]} 8. d5 {[%emt 0:06:13]} c5 {[%emt 0:02:01]} 9. h4 {[%emt 0:00:24]} a6 {[%emt 0:00:05]} 10. h5 {[%emt 0:08:43]} b5 {[%emt 0:00:03]} 11. f3 {[%emt 0:00:18]} c4 {[%emt 0:00:44]} 12. Bf1 {[%emt 0:00:08]} b4 {[%emt 0:04:17]} 13. Nb1 {[%emt 0:01:55]} c3 {[%emt 0:00:07]} 14. Qe3 {[%emt 0:04:58]} cxb2+ {[%emt 0:02:05]} 15. Kxb2 {[%emt 0:00:05]} Nbd7 {[%emt 0:00:19]} 16. g4 {[%emt 0:00:17]} Nc5 {[%emt 0:00:50]} 17. Ne2 {[%emt 0:01:43]} Qb6 {[%emt 0:01:42]} 18. Ka1 {[%emt 0:01:35]} a5 {[%emt 0:02:58]} 19. Nd2 {[%emt 0:04:54]} a4 {[%emt 0:00:56]} 20. Nc4 {[%emt 0:00:18]} Qc7 {[%emt 0:00:10]} 21. Ng3 {[%emt 0:00:53]} b3 {[%emt 0:00:53]} 22. c3 {[%emt 0:04:11]} bxa2 {[%emt 0:01:38]} 23. Bh6 {[%emt 0:00:59]} Rb8 {[%emt 0:07:06]} 24. Bxg7 {[%emt 0:06:05]} Kxg7 {[%emt 0:00:07]} 25. Be2 {[%emt 0:01:19]} Qa7 {[%emt 0:07:19]} 26. Kxa2 {[%emt 0:03:46]} a3 {[%emt 0:00:09]} 27. hxg6 {[%emt 0:05:56]} fxg6 {[%emt 0:01:33]} 28. Rb1 {[%emt 0:21:39]} Rb2+ {[%emt 0:07:51]} 29. Rxb2 {[%emt 0:00:05]} axb2+ {[%emt 0:00:03]} 30. Kxb2 {[%emt 0:00:12]} Bd7 {[%emt 0:01:21]} 31. Rb1 {[%emt 0:02:46]} Bb5 {[%emt 0:04:49]} 32. Ra1 {[%emt 0:02:44]} Qb8 {[%emt 0:00:25]} 33. Rb1 {[%emt 0:08:26]} Bxc4+ {[%emt 0:00:21]} 34. Kc1 {[%emt 0:00:02]} Qa7 {[%emt 0:01:27]} 35. Kd1 {[%emt 0:01:42]} Bxe2+ {[%emt 0:00:16]} 36. Qxe2 {[%emt 0:00:08]} Rb8 {[%emt 0:00:36]} 37. Rxb8 {[%emt 0:00:12]} Qxb8 {[%emt 0:00:07]} 38. Qd2 {[%emt 0:00:30]} Qb3+ {[%emt 0:02:28]} 39. Ke2 {[%emt 0:00:32]} Qc4+ {[%emt 0:00:10]} 40. Kf2 {[%emt 0:00:10]} Nd3+ {[%emt 0:00:27]} 41. Kg2 {[%emt 0:30:07]} Nf4+ {[%emt 0:30:11]} 42. Kh2 {[%emt 0:00:04]} h5 {[%emt 0:00:44]} 43. g5 {[%emt 0:01:01]} Nh7 {[%emt 0:00:45]} 44. Qf2 {[%emt 0:00:32]} h4 {[%emt 0:02:36]} 45. Qa7+ {[%emt 0:00:06]} Kg8 {[%emt 0:00:04]} 46. Qb8+ {[%emt 0:00:09]} Nf8 {[%emt 0:00:06]} 47. Qxd6 {[%emt 0:00:08]} Qa2+ {[%emt 0:00:11]} 0-1

[Event "Qatar Masters-B 2024"]
[Site "Doha"]
[Date "2024.12.09"]
[Round "6.2"]
[White "Alhassadi, Yousef A."]
[Black "Mahmood Lodhi"]
[Result "1-0"]
[ECO "C45"]
[WhiteElo "2126"]
[BlackElo "2150"]
[Annotator "RC"]
[PlyCount "113"]
[EventDate "2024.11.24"]
[EventType "swiss"]
[EventCountry "QAT"]
[SourceTitle "playchess.com"]
[Source "ChessBase"]
[SourceQuality "1"]
[TimeControl "40/5400+30:1800+30"]

1. e4 {[%emt 0:00:03]} e5 {[%emt 0:00:04]} 2. Nf3 {[%emt 0:00:04]} Nc6 {[%emt 0:00:07]} 3. d4 {[%emt 0:00:05]} exd4 {[%emt 0:00:09]} 4. Nxd4 {[%emt 0:00:05]} Bc5 {[%emt 0:01:06]} 5. Nb3 {[%emt 0:01:52]} Bb4+ {[%emt 0:00:25]} 6. c3 {[%emt 0:00:16]} Be7 {[%emt 0:00:09]} 7. f4 {[%emt 0:00:27]} d6 {[%emt 0:01:22]} 8. N1d2 {[%emt 0:01:53]} Nf6 {[%emt 0:00:32]} 9. Bd3 {[%emt 0:00:55]} O-O {[%emt 0:02:17]} 10. O-O {[%emt 0:00:22]} a5 {[%emt 0:01:07]} 11. a4 {[%emt 0:00:52]} Re8 {[%emt 0:03:35]} 12. Qc2 {[%emt 0:04:10]} Bf8 {[%emt 0:01:43]} 13. Nf3 {[%emt 0:06:20]} g6 {[%emt 0:22:58]} 14. Bd2 {[%emt 0:09:28]} Bg7 {[%emt 0:02:06]} 15. Rae1 {[%emt 0:12:40]} Nd7 {[%emt 0:10:22]} 16. Kh1 {[%emt 0:13:08]} Nb6 {[%emt 0:04:56]} 17. Nbd4 {[%emt 0:00:42]} Bd7 {[%emt 0:04:24]} 18. b3 {[%emt 0:01:44]} Bg4 {[%emt 0:06:57]} 19. Be3 {[%emt 0:28:35]} Bxf3 {[%emt 0:03:55]} 20. Nxf3 {[%emt 0:07:33]} Nd7 {[%emt 0:06:30]} 21. Bc4 {[%emt 0:00:47]} Nf6 {[%emt 0:01:22]} 22. Bg1 {[%emt 0:02:33]} Ne7 {[%emt 0:07:33]} 23. Rd1 {[%emt 0:02:20]} c6 {[%emt 0:06:05]} 24. Ng5 {[%emt 0:04:00]} d5 {[%emt 0:00:49]} 25. e5 {[%emt 0:00:31]} Nd7 {[%emt 0:01:37]} 26. e6 {[%emt 0:00:12]} fxe6 {[%emt 0:00:37]} 27. Nxe6 {[%emt 0:00:05]} Qc8 {[%emt 0:00:27]} 28. Nxg7 {[%emt 0:00:07]} Kxg7 {[%emt 0:00:33]} 29. Bd3 {[%emt 0:00:32]} Nf6 {[%emt 0:01:18]} 30. f5 {[%emt 0:00:51]} g5 {[%emt 0:02:08]} 31. Rde1 {[%emt 0:01:13]} Neg8 {[%emt 0:01:12]} 32. Qd2 {[%emt 0:00:20]} h6 {[%emt 0:00:26]} 33. h4 {[%emt 0:00:38]} g4 {[%emt 0:01:39]} 34. Qf4 {[%emt 0:00:38]} Qb8 {[%emt 0:01:20]} 35. Rxe8 {[%emt 0:00:47]} Qxf4 {[%emt 0:00:27]} 36. Rxg8+ {[%emt 0:00:08]} Rxg8 {[%emt 0:01:04]} 37. Rxf4 {[%emt 0:00:03]} Re8 {[%emt 0:00:22]} 38. Bd4 {[%emt 0:00:16]} h5 {[%emt 0:00:13]} 39. Rf1 {[%emt 0:00:35]} Kf7 {[%emt 0:00:17]} 40. Kh2 {[%emt 0:00:56]} Nd7 {[%emt 0:00:24]} 41. f6 {[%emt 0:30:19]} c5 {[%emt 0:31:48]} 42. Bg1 {[%emt 0:00:28]} b6 {[%emt 0:00:16]} 43. Bb5 {[%emt 0:00:20]} Rd8 {[%emt 0:00:15]} 44. b4 {[%emt 0:00:37]} axb4 {[%emt 0:01:03]} 45. cxb4 {[%emt 0:00:07]} cxb4 {[%emt 0:00:18]} 46. Bxd7 {[%emt 0:00:33]} Rxd7 {[%emt 0:00:00]} 47. Bxb6 {[%emt 0:00:08]} Rd6 {[%emt 0:04:28]} 48. a5 {[%emt 0:00:05]} d4 {[%emt 0:00:24]} 49. Bc5 {[%emt 0:00:22]} Rd5 {[%emt 0:00:23]} 50. Bxb4 {[%emt 0:00:05]} Rb5 {[%emt 0:00:27]} 51. Bd2 {[%emt 0:00:20]} Rb2 {[%emt 0:00:45]} 52. Ra1 {[%emt 0:01:28]} Kxf6 {[%emt 0:01:05]} 53. Bf4 {[%emt 0:00:36]} Rb7 {[%emt 0:00:19]} 54. a6 {[%emt 0:00:07]} Ra7 {[%emt 0:00:05]} 55. Bb8 {[%emt 0:00:05]} Ra8 {[%emt 0:00:06]} 56. a7 {[%emt 0:00:06]} Ke6 {[%emt 0:00:40]} 57. Ra5 {[%emt 0:00:08]} 1-0

[Event "Qatar Masters-B 2024"]
[Site "Doha"]
[Date "2024.12.09"]
[Round "6.3"]
[White "Boulrens, Ala Eddine"]
[Black "Hong, Mingren"]
[Result "0-1"]
[ECO "B22"]
[WhiteElo "2144"]
[BlackElo "1951"]
[Annotator "NA RC"]
[PlyCount "140"]
[EventDate "2024.11.24"]
[EventType "swiss"]
[EventCountry "QAT"]
[SourceTitle "playchess.com"]
[Source "ChessBase"]
[SourceQuality "1"]
[TimeControl "40/5400+30:1800+30"]

1. e4 {[%emt 0:00:10]} c5 {[%emt 0:00:03]} 2. c3 {[%emt 0:00:09]} Nf6 {[%emt 0:00:10]} 3. e5 {[%emt 0:00:05]} Nd5 {[%emt 0:00:07]} 4. Nf3 {[%emt 0:00:03]} e6 {[%emt 0:00:06]} 5. d4 {[%emt 0:00:05]} cxd4 {[%emt 0:00:04]} 6. cxd4 {[%emt 0:00:02]} d6 {[%emt 0:00:14]} 7. Bc4 {[%emt 0:00:06]} Nc6 {[%emt 0:00:04]} 8. Qe2 {[%emt 0:00:15]} Be7 {[%emt 0:00:05]} 9. O-O {[%emt 0:00:05]} O-O {[%emt 0:00:03]} 10. Qe4 {[%emt 0:00:05]} Ndb4 {[%emt 0:13:15]} 11. exd6 {[%emt 0:00:12]} Qxd6 {[%emt 0:00:05]} 12. Nc3 {[%emt 0:00:12]} Na5 {[%emt 0:03:47]} 13. b3 {[%emt 0:02:58]} Nxc4 {[%emt 0:04:29]} 14. bxc4 {[%emt 0:00:04]} Qc7 {[%emt 0:00:03]} 15. d5 {[%emt 0:05:02]} exd5 {[%emt 0:04:51]} 16. Nxd5 {[%emt 0:00:05]} Nxd5 {[%emt 0:00:04]} 17. cxd5 {[%emt 0:00:16]} Bf6 {[%emt 0:02:41]} 18. Bf4 {[%emt 0:12:10]} Qd7 {[%emt 0:00:24]} 19. Be5 {[%emt 0:23:32]} Qg4 {[%emt 0:05:16]} 20. Rfe1 {[%emt 0:03:32]} Re8 {[%emt 0:02:38]} 21. Qd3 {[%emt 0:05:51]} Bf5 {[%emt 0:00:59]} 22. Qb5 {[%emt 0:04:20]} a6 {[%emt 0:07:07]} 23. Qb3 {[%emt 0:14:59]} Be4 {[%emt 0:02:37]} 24. h3 {[%emt 0:01:59]} Qf5 {[%emt 0:00:29]} 25. Rxe4 {[%emt 0:09:08]} Qxe4 {[%emt 0:03:57]} 26. Bxf6 {[%emt 0:00:04]} gxf6 {[%emt 0:00:05]} 27. Rd1 {[%emt 0:00:18]} b5 {[%emt 0:08:45]} 28. Rd4 {[%emt 0:01:07]} Qf5 {[%emt 0:00:37]} 29. Rg4+ {[%emt 0:03:47]} Kh8 {[%emt 0:00:07]} 30. d6 {[%emt 0:01:47]} Qe6 {[%emt 0:05:41]} 31. Qd3 {[%emt 0:00:42]} Rg8 {[%emt 0:00:21]} 32. Rh4 {[%emt 0:05:37]} Rg7 {[%emt 0:00:04]} 33. g3 {[%emt 0:04:38]} Rd8 {[%emt 0:00:43]} 34. Re4 {[%emt 0:00:53]} Qxd6 {[%emt 0:00:23]} 35. Qe3 {[%emt 0:01:42]} Rdg8 {[%emt 0:01:02]} 36. Kg2 {[%emt 0:00:32]} a5 {[%emt 0:01:51]} 37. Nh4 {[%emt 0:00:04]} Qc6 {[%emt 0:01:27]} 38. Kh2 {[%emt 0:00:03]} Rg5 {[%emt 0:00:42]} 39. Rf4 {[%emt 0:00:34]} Re5 {[%emt 0:04:49]} 40. Qa7 {[%emt 0:00:40]} Re4 {[%emt 0:02:56]} 41. Rxe4 {[%emt 0:32:29]} Qxe4 {[%emt 0:30:04]} 42. Qxa5 {[%emt 0:00:16]} Qd4 {[%emt 0:03:38]} 43. Qe1 {[%emt 0:00:21]} Qe5 {[%emt 0:00:27]} 44. Qb4 {[%emt 0:00:13]} Rd8 {[%emt 0:03:21]} 45. a4 {[%emt 0:01:09]} Qd4 {[%emt 0:01:03]} 46. Qxd4 {[%emt 0:00:32]} Rxd4 {[%emt 0:00:03]} 47. axb5 {[%emt 0:00:04]} Rd5 {[%emt 0:00:18]} 48. g4 {[%emt 0:00:08]} Rxb5 {[%emt 0:00:02]} 49. Kg3 {[%emt 0:00:07]} Rb4 {[%emt 0:00:12]} 50. Nf5 {[%emt 0:00:16]} Kg8 {[%emt 0:00:11]} 51. h4 {[%emt 0:00:35]} Kf8 {[%emt 0:00:07]} 52. f3 {[%emt 0:00:06]} Ke8 {[%emt 0:00:16]} 53. Ne3 {[%emt 0:00:12]} Rd4 {[%emt 0:00:21]} 54. Nf5 {[%emt 0:00:05]} Ra4 {[%emt 0:00:05]} 55. h5 {[%emt 0:00:45]} Kd7 {[%emt 0:00:07]} 56. Nh4 {[%emt 0:00:25]} Ke6 {[%emt 0:00:12]} 57. Nf5 {[%emt 0:00:20]} Ra5 {[%emt 0:01:38]} 58. Nh4 {[%emt 0:00:49]} f5 {[%emt 0:00:36]} 59. gxf5+ {[%emt 0:02:43]} Rxf5 {[%emt 0:00:15]} 60. Kg4 {[%emt 0:00:29]} Ra5 {[%emt 0:00:06]} 61. f4 {[%emt 0:00:11]} h6 {[%emt 0:00:31]} 62. Nf3 {[%emt 0:00:13]} f5+ {[%emt 0:00:23]} 63. Kg3 {[%emt 0:00:02]} Ra3 {[%emt 0:00:16]} 64. Kh4 {[%emt 0:00:04]} Kd5 {[%emt 0:00:13]} 65. Nd4 {[%emt 0:00:32]} Ra4 {[%emt 0:00:08]} 66. Ne2 {[%emt 0:00:38]} Re4 {[%emt 0:00:08]} 67. Nc3+ {[%emt 0:00:37]} Kd4 {[%emt 0:00:04]} 68. Nb5+ {[%emt 0:00:05]} Ke3 {[%emt 0:00:05]} 69. Nd6 {[%emt 0:00:13]} Rxf4+ {[%emt 0:00:04]} 70. Kh3 {[%emt 0:00:03]} Rf1 {[%emt 0:00:17]} 0-1

[Event "Qatar Masters-B 2024"]
[Site "Doha"]
[Date "2024.12.09"]
[Round "6.4"]
[White "Maraimov, Khudoyor"]
[Black "Araoune, Saadi"]
[Result "1/2-1/2"]
[ECO "B10"]
[WhiteElo "1832"]
[BlackElo "2085"]
[Annotator "NA RC"]
[PlyCount "77"]
[EventDate "2024.11.24"]
[EventType "swiss"]
[EventCountry "QAT"]
[SourceTitle "playchess.com"]
[Source "ChessBase"]
[SourceQuality "1"]
[TimeControl "40/5400+30:1800+30"]

1. e4 {[%emt 0:02:41]} c6 {[%emt 0:00:04]} 2. Nf3 {[%emt 0:00:16]} d5 {[%emt 0:00:05]} 3. d3 {[%emt 0:00:05]} Bg4 {[%emt 0:01:09]} 4. Nbd2 {[%emt 0:02:24]} e6 {[%emt 0:01:39]} 5. Be2 {[%emt 0:01:23]} Nf6 {[%emt 0:00:10]} 6. O-O {[%emt 0:00:36]} Be7 {[%emt 0:00:15]} 7. c3 {[%emt 0:00:33]} O-O {[%emt 0:00:21]} 8. h3 {[%emt 0:05:21]} Bh5 {[%emt 0:00:17]} 9. Ne5 {[%emt 0:01:59]} Bxe2 {[%emt 0:02:13]} 10. Qxe2 {[%emt 0:00:28]} Nbd7 {[%emt 0:03:12]} 11. d4 {[%emt 0:08:21]} Nxe5 {[%emt 0:09:07]} 12. dxe5 {[%emt 0:00:03]} Nxe4 {[%emt 0:00:04]} 13. Nxe4 {[%emt 0:00:08]} dxe4 {[%emt 0:00:04]} 14. Qxe4 {[%emt 0:00:04]} Qd5 {[%emt 0:00:07]} 15. Qxd5 {[%emt 0:02:16]} cxd5 {[%emt 0:00:15]} 16. Be3 {[%emt 0:00:36]} Rfc8 {[%emt 0:04:00]} 17. Rfd1 {[%emt 0:02:48]} b5 {[%emt 0:06:31]} 18. Kf1 {[%emt 0:09:00]} a6 {[%emt 0:16:31]} 19. Ke2 {[%emt 0:02:55]} Rc4 {[%emt 0:00:32]} 20. Rd4 {[%emt 0:02:40]} Rb8 {[%emt 0:03:32]} 21. Rc1 {[%emt 0:22:40]} f6 {[%emt 0:04:23]} 22. f4 {[%emt 0:04:24]} Rbc8 {[%emt 0:15:20]} 23. Rcd1 {[%emt 0:04:49]} fxe5 {[%emt 0:01:04]} 24. fxe5 {[%emt 0:00:08]} h5 {[%emt 0:12:12]} 25. Rxc4 {[%emt 0:06:28]} bxc4 {[%emt 0:00:25]} 26. Bd4 {[%emt 0:01:00]} Rb8 {[%emt 0:00:55]} 27. Rb1 {[%emt 0:00:19]} a5 {[%emt 0:00:40]} 28. b3 {[%emt 0:00:46]} Kh7 {[%emt 0:01:08]} 29. Kd2 {[%emt 0:00:44]} Kg6 {[%emt 0:01:37]} 30. Kc2 {[%emt 0:00:09]} Bh4 {[%emt 0:10:26]} 31. Rf1 {[%emt 0:02:39]} Bg3 {[%emt 0:00:28]} 32. Rf3 {[%emt 0:03:34]} h4 {[%emt 0:01:35]} 33. Rf1 {[%emt 0:01:53]} Rb7 {[%emt 0:00:05]} 34. Rf8 {[%emt 0:00:54]} cxb3+ {[%emt 0:01:35]} 35. axb3 {[%emt 0:00:06]} Kg5 {[%emt 0:02:07]} 36. Be3+ {[%emt 0:03:59]} Kg6 {[%emt 0:00:06]} 37. Bd4 {[%emt 0:01:02]} Kg5 {[%emt 0:00:05]} 38. Be3+ {[%emt 0:03:13]} Kg6 {[%emt 0:00:01]} 39. Bd4 {[%emt 0:00:08]} 1/2-1/2

[Event "Qatar Masters-B 2024"]
[Site "Doha"]
[Date "2024.12.09"]
[Round "6.5"]
[White "Akhmediyar, Yernur"]
[Black "Albin Sajan"]
[Result "1-0"]
[ECO "D35"]
[WhiteElo "1898"]
[BlackElo "1804"]
[Annotator "NA COMBH"]
[PlyCount "93"]
[EventDate "2024.11.24"]
[EventType "swiss"]
[EventCountry "QAT"]
[SourceTitle "playchess.com"]
[Source "ChessBase"]
[SourceQuality "1"]
[TimeControl "40/5400+30:1800+30"]

1. c4 {[%emt 0:00:28]} e6 {[%emt 0:00:16]} 2. Nc3 {[%emt 0:00:30]} d5 {[%emt 0:00:05]} 3. d4 {[%emt 0:00:45]} Be7 {[%emt 0:00:15]} 4. Bf4 {[%emt 0:03:02]} Nf6 {[%emt 0:00:23]} 5. e3 {[%emt 0:01:39]} O-O {[%emt 0:00:32]} 6. c5 {[%emt 0:08:22]} b6 {[%emt 0:12:01]} 7. b4 {[%emt 0:05:04]} c6 {[%emt 0:04:40]} 8. h3 {[%emt 0:06:22]} bxc5 {[%emt 0:01:56]} 9. bxc5 {[%emt 0:00:19]} Qa5 {[%emt 0:01:35]} 10. Qd2 {[%emt 0:01:28]} Ba6 {[%emt 0:03:41]} 11. Nf3 {[%emt 0:09:39]} Nbd7 {[%emt 0:04:27]} 12. Nxd5 {[%emt 0:07:39]} Qxd2+ {[%emt 0:01:21]} 13. Kxd2 {[%emt 0:03:22]} Nxd5 {[%emt 0:01:00]} 14. Bxa6 {[%emt 0:00:22]} Nxf4 {[%emt 0:00:57]} 15. exf4 {[%emt 0:00:08]} Rfd8 {[%emt 0:06:57]} 16. Kc2 {[%emt 0:04:40]} Rab8 {[%emt 0:05:23]} 17. Rab1 {[%emt 0:07:30]} Rxb1 {[%emt 0:06:21]} 18. Rxb1 {[%emt 0:00:51]} Rb8 {[%emt 0:00:46]} 19. Bb7 {[%emt 0:16:35]} f6 {[%emt 0:12:42]} 20. Bxc6 {[%emt 0:02:04]} Rxb1 {[%emt 0:00:33]} 21. Kxb1 {[%emt 0:00:08]} Nxc5 {[%emt 0:00:19]} 22. dxc5 {[%emt 0:01:04]} Bxc5 {[%emt 0:00:08]} 23. Bb5 {[%emt 0:05:21]} Kf8 {[%emt 0:01:27]} 24. Kc2 {[%emt 0:00:51]} Bxf2 {[%emt 0:00:54]} 25. Kd3 {[%emt 0:00:31]} Bb6 {[%emt 0:07:17]} 26. Bc4 {[%emt 0:03:36]} Ke7 {[%emt 0:00:08]} 27. Nd4 {[%emt 0:00:14]} f5 {[%emt 0:00:31]} 28. Nxe6 {[%emt 0:00:35]} g6 {[%emt 0:00:37]} 29. Ng5 {[%emt 0:02:21]} Bc7 {[%emt 0:00:40]} 30. Ke3 {[%emt 0:00:47]} h6 {[%emt 0:00:38]} 31. Nf7 {[%emt 0:03:11]} h5 {[%emt 0:00:13]} 32. Ne5 {[%emt 0:00:32]} g5 {[%emt 0:01:27]} 33. Kf3 {[%emt 0:01:47]} gxf4 {[%emt 0:02:20]} 34. Ng6+ {[%emt 0:01:06]} Kd6 {[%emt 0:00:41]} 35. Nxf4 {[%emt 0:00:19]} h4 {[%emt 0:00:07]} 36. Ng6 {[%emt 0:00:44]} Bd8 {[%emt 0:00:25]} 37. Kf4 {[%emt 0:00:30]} Kc5 {[%emt 0:00:07]} 38. Be6 {[%emt 0:00:28]} Kd4 {[%emt 0:00:15]} 39. Bxf5 {[%emt 0:00:17]} a5 {[%emt 0:00:03]} 40. Kg4 {[%emt 0:00:40]} a4 {[%emt 0:00:05]} 41. Nxh4 {[%emt 0:30:10]} a3 {[%emt 0:30:05]} 42. Nf3+ {[%emt 0:00:10]} Kc3 {[%emt 0:00:02]} 43. h4 {[%emt 0:00:12]} Kb2 {[%emt 0:00:08]} 44. Be6 {[%emt 0:00:11]} Ka1 {[%emt 0:00:09]} 45. h5 {[%emt 0:00:13]} Bf6 {[%emt 0:00:40]} 46. Kf5 {[%emt 0:00:18]} Bb2 {[%emt 0:00:06]} 47. g4 {[%emt 0:00:09]} 1-0

[Event "Qatar Masters-B 2024"]
[Site "Doha"]
[Date "2024.12.09"]
[Round "6.6"]
[White "Alhejab, Meshal"]
[Black "Khalil, Manar"]
[Result "0-1"]
[ECO "B23"]
[WhiteElo "1832"]
[BlackElo "1900"]
[Annotator "NA RC"]
[PlyCount "57"]
[EventDate "2024.11.24"]
[EventType "swiss"]
[EventCountry "QAT"]
[SourceTitle "playchess.com"]
[Source "ChessBase"]
[SourceQuality "1"]
[TimeControl "40/5400+30:1800+30"]

1. e4 {[%emt 0:01:11]} c5 {[%emt 0:00:22]} 2. Nc3 {[%emt 0:00:24]} Nc6 {[%emt 0:00:28]} 3. Bb5 {[%emt 0:00:15]} g6 {[%emt 0:01:02]} 4. Bxc6 {[%emt 0:00:29]} dxc6 {[%emt 0:00:28]} 5. d3 {[%emt 0:00:07]} Bg7 {[%emt 0:00:40]} 6. Be3 {[%emt 0:00:12]} b6 {[%emt 0:00:30]} 7. Qd2 {[%emt 0:00:24]} h6 {[%emt 0:02:39]} 8. a4 {[%emt 0:04:25]} a5 {[%emt 0:02:04]} 9. Nge2 {[%emt 0:07:02]} e5 {[%emt 0:07:39]} 10. f4 {[%emt 0:00:56]} Nf6 {[%emt 0:04:03]} 11. h3 {[%emt 0:02:54]} exf4 {[%emt 0:13:40]} 12. Nxf4 {[%emt 0:04:44]} g5 {[%emt 0:02:37]} 13. Nfe2 {[%emt 0:07:11]} Qe7 {[%emt 0:01:04]} 14. O-O-O {[%emt 0:03:17]} Be6 {[%emt 0:02:58]} 15. d4 {[%emt 0:05:53]} O-O-O {[%emt 0:01:49]} 16. Qe1 {[%emt 0:02:46]} Nxe4 {[%emt 0:07:32]} 17. Nxe4 {[%emt 0:03:18]} Bd5 {[%emt 0:01:11]} 18. dxc5 {[%emt 0:08:27]} Qxe4 {[%emt 0:03:18]} 19. Rd3 {[%emt 0:16:59]} Rhe8 {[%emt 0:22:14]} 20. cxb6 {[%emt 0:12:19]} Kb7 {[%emt 0:04:38]} 21. Ng3 {[%emt 0:07:27]} Qxa4 {[%emt 0:03:01]} 22. Ra3 {[%emt 0:00:56]} Qb5 {[%emt 0:01:29]} 23. b4 {[%emt 0:06:39]} a4 {[%emt 0:10:01]} 24. Nf5 {[%emt 0:02:24]} Bf6 {[%emt 0:02:51]} 25. Rf1 {[%emt 0:01:45]} Bc4 {[%emt 0:02:17]} 26. Rf2 {[%emt 0:00:33]} Qe5 {[%emt 0:01:40]} 27. c3 {[%emt 0:00:23]} Rd3 {[%emt 0:00:41]} 28. Rc2 {[%emt 0:00:39]} Qxf5 {[%emt 0:00:48]} 29. Qg3 {[%emt 0:00:31]} 0-1

[Event "Qatar Masters-B 2024"]
[Site "Doha"]
[Date "2024.12.09"]
[Round "6.7"]
[White "Demirkol, Kerim Calvelo"]
[Black "Aryan Mehta"]
[Result "0-1"]
[ECO "E68"]
[WhiteElo "1859"]
[BlackElo "1762"]
[Annotator "NA COMBH"]
[PlyCount "80"]
[EventDate "2024.11.24"]
[EventType "swiss"]
[EventCountry "QAT"]
[SourceTitle "playchess.com"]
[Source "ChessBase"]
[SourceQuality "1"]
[TimeControl "40/5400+30:1800+30"]

1. d4 {[%emt 0:00:05]} Nf6 {[%emt 0:00:07]} 2. c4 {[%emt 0:00:17]} g6 {[%emt 0:00:09]} 3. Nc3 {[%emt 0:00:07]} Bg7 {[%emt 0:00:05]} 4. g3 {[%emt 0:00:30]} O-O {[%emt 0:00:08]} 5. Bg2 {[%emt 0:00:04]} d6 {[%emt 0:00:12]} 6. Nf3 {[%emt 0:00:46]} Nbd7 {[%emt 0:00:10]} 7. e4 {[%emt 0:02:12]} e5 {[%emt 0:00:11]} 8. O-O {[%emt 0:02:27]} a6 {[%emt 0:00:18]} 9. d5 {[%emt 0:05:27]} b5 {[%emt 0:00:18]} 10. cxb5 {[%emt 0:03:48]} axb5 {[%emt 0:00:10]} 11. b4 {[%emt 0:00:26]} Bb7 {[%emt 0:03:16]} 12. Bg5 {[%emt 0:05:44]} h6 {[%emt 0:03:39]} 13. Bxf6 {[%emt 0:00:24]} Nxf6 {[%emt 0:01:03]} 14. Ne1 {[%emt 0:05:01]} c5 {[%emt 0:05:17]} 15. dxc6 {[%emt 0:00:27]} Bxc6 {[%emt 0:00:00]} 16. Nc2 {[%emt 0:01:08]} Qc7 {[%emt 0:11:42]} 17. Qd3 {[%emt 0:08:14]} Qb7 {[%emt 0:06:12]} 18. a4 {[%emt 0:02:19]} bxa4 {[%emt 0:05:24]} 19. b5 {[%emt 0:01:34]} Bd7 {[%emt 0:00:27]} 20. Rfb1 {[%emt 0:00:23]} Rfc8 {[%emt 0:05:40]} 21. Ne3 {[%emt 0:02:52]} Rc5 {[%emt 0:07:25]} 22. Bf1 {[%emt 0:12:47]} Rxc3 {[%emt 0:12:40]} 23. Qxc3 {[%emt 0:00:08]} Nxe4 {[%emt 0:00:23]} 24. Qb4 {[%emt 0:00:15]} d5 {[%emt 0:05:47]} 25. Bg2 {[%emt 0:01:03]} f5 {[%emt 0:07:10]} 26. Rd1 {[%emt 0:10:37]} Be6 {[%emt 0:01:33]} 27. Bxe4 {[%emt 0:00:51]} fxe4 {[%emt 0:01:04]} 28. Qd6 {[%emt 0:00:31]} Qf7 {[%emt 0:03:21]} 29. Nxd5 {[%emt 0:09:37]} Bf8 {[%emt 0:02:21]} 30. Qc6 {[%emt 0:06:08]} Rc8 {[%emt 0:00:24]} 31. Ne7+ {[%emt 0:07:31]} Bxe7 {[%emt 0:00:26]} 32. Qxe4 {[%emt 0:00:06]} Bc5 {[%emt 0:01:07]} 33. Rd2 {[%emt 0:01:17]} Rf8 {[%emt 0:00:36]} 34. Qc2 {[%emt 0:02:31]} Bd4 {[%emt 0:00:33]} 35. Rf1 {[%emt 0:01:07]} Bc4 {[%emt 0:00:20]} 36. Rb1 {[%emt 0:00:33]} Bb3 {[%emt 0:00:16]} 37. Qd3 {[%emt 0:01:23]} Bxf2+ {[%emt 0:00:26]} 38. Kg2 {[%emt 0:00:07]} Qb7+ {[%emt 0:01:24]} 39. Kh3 {[%emt 0:00:30]} Be6+ {[%emt 0:00:23]} 40. Kh4 {[%emt 0:01:23]} Rf4# {[%emt 0:00:21]} 0-1